Cogmind - Beta 15 @@@ ROGUE MODE // 2025.05.07 @ 15:45:34 Player: UberDoot Result: Destroyed by G-47 Trooper with Particle Gun Performance ------------- Evolutions (2) 1000 Regions Visited (3) 600 Robots Destroyed (44) 220 Value Destroyed (1252) 1252 Prototype IDs (2) 40 Alien Tech Used (0) 0 Bonus (0) 0 TOTAL SCORE: 3112 Bonus ------- None Cogmind --------- Core Integrity 0/550 Matter 285/300 Energy 89/100 System Corruption 2% Temperature Cool (9) Movement Rolling (150) Ox4 Location -8/Materials Parts ------- > --- POWER (1) -------- (None) > --- PROPULSION (3) --- Subdweller Monowheel > --- UTILITY (4) ------ Advanced Heat Sink Disposable Heat Sink Huge Storage Unit > --- WEAPON (3) ------- Mining Claw > --- INVENTORY (25) --- Subdweller Power Source Subdweller Power Source Carbon-fiber Leg Carbon-fiber Leg Carbon-fiber Leg Carbon-fiber Leg Cargo Legs Subdweller Monowheel Subdweller Monowheel High-capacity Storage Unit Large Matter Pod (150) Structural Scanner Subdweller Optics Subdweller Optics Subdweller Optics Peak State ------------ > --- POWER ------------ Light Nuclear Core > --- PROPULSION ------- Light Treads Light Treads Light Treads > --- UTILITY ---------- Advanced Heat Sink Huge Storage Unit Seismic Detector Light Armor Plating > --- WEAPON ----------- Particle Gun Heavy Assault Rifle Subdweller Machine Gun > --- INVENTORY -------- Subdweller Power Source Subdweller Power Source Light Treads Light Treads Light Treads Carbon-fiber Leg Carbon-fiber Leg Carbon-fiber Leg Carbon-fiber Leg Cargo Legs Wheel Armored Wheel Subdweller Monowheel Subdweller Monowheel Subdweller Monowheel Disposable Heat Sink Large Storage Unit High-capacity Storage Unit Large Matter Pod Structural Scanner Subdweller Optics Subdweller Optics Subdweller Optics Mining Claw [Rating: 25] Favorites ----------- Power Subdweller Power Source Engine Subdweller Power Source Power Core Light Nuclear Core Propulsion Light Treads Treads Light Treads Leg Aluminum Leg Wheel Wheel Utility Huge Storage Unit Device Improved Heat Sink Storage Huge Storage Unit Protection Light Armor Plating Weapon Medium Laser Energy Gun Medium Laser Ballistic Gun Subdweller Machine Gun Slashing Weapon Mining Claw Build | -11 -10 -10 -8 ------- Run | Yrd Mat Sub Mat Slots Evolved 4 | . . . 4 Power . | . . . . Propulsion 1 | . . . 1 Utility 2 | . . . 2 Weapon 1 | . . . 1 Parts Attached 45 | 7 12 7 19 Power 8 | 1 3 1 3 Engine 5 | 1 2 1 1 Core 3 | . 1 . 2 Reactor . | . . . . Propulsion 17 | 2 4 3 8 Treads 12 | . 4 2 6 Leg 2 | 2 . . . Wheel 3 | . . 1 2 Hover . | . . . . Flight . | . . . . Utility 10 | 2 3 1 4 Device 6 | 1 2 1 2 Storage 2 | 1 1 . . Processor . | . . . . Hackware . | . . . . Protection 2 | . . . 2 Artifact . | . . . . Weapon 10 | 2 2 2 4 Energy Gun 6 | 1 2 1 2 Energy Cannon . | . . . . Ballistic Gun 3 | 1 . 1 1 Ballistic Cannon . | . . . . Launcher . | . . . . Special Weapon . | . . . . Impact Weapon . | . . . . Slashing Weapon 1 | . . . 1 Piercing Weapon . | . . . . Special Melee Weapon . | . . . . Unidentified Prototypes . | . . . . Parts Lost 29 | . 2 3 24 Power 5 | . 1 1 3 Propulsion 12 | . . 1 11 Utility 4 | . . . 4 Weapon 8 | . 1 1 6 Highest Loss Streak 18 | . 2 2 18 To Critical Strikes . | . . . . Average Backups 17 | 4 11 22 21 Power 1 | . . 1 2 Propulsion 8 | 2 4 10 10 Utility 6 | . 4 7 7 Weapon 2 | . 2 2 1 Tool/Special . | . . . . Unused Backups 22 | 2 3 2 15 Power 1 | . . . 1 Propulsion 9 | 2 . . 7 Utility 8 | . . 1 7 Weapon 3 | . 2 1 . Tool/Special 1 | . 1 . . Average Slot Usage (%) 97 | . 99 99 86 Engine 9 | . 7 13 5 Core 2 | . 5 . 3 Treads 21 | . 26 16 23 Wheel 5 | . . 11 . Device 14 | . 14 14 16 Storage 13 | . 14 14 9 Protection 1 | . . . 6 Energy Gun 15 | . 17 16 11 Ballistic Gun 10 | . 10 11 9 Peak Build Rating 25 | 8 13 15 25 Average Rating 13 | 5 10 14 20 On Entrance 8 | . 7 11 15 Naked Turns . | . . . . Heaviest Build 100 | 12 91 92 100 Greatest Support 60 | 20 40 40 60 Greatest Overweight (x) 9 | 2 2 9 7 Average Overweight (x) 4 | . . 8 1 Largest Inventory Capacity 25 | 8 25 25 25 Average Capacity 21 | 7 16 25 25 Most Carried 25 | 8 17 25 25 Average Carried 17 | 4 11 23 22 Final Capacity 25 | 8 25 25 25 Final Carried 25 | 7 17 25 16 Class Distribution -------------------- 84% | Mutant 8% | Scavenger-Tank 6% | Scavenger-Mutant Dominant Class ---------------- Mutant | -10/Materials Mutant | -10/Subcaves Scavenger-Tank | -8/Materials Resources | -11 -10 -10 -8 ----------- Run | Yrd Mat Sub Mat Matter Collected 1111 | 303 305 182 321 Remotely . | . . . . Salvage Created 1640 | 126 427 315 772 Parts 89 | 10 31 16 32 Haulers Intercepted 1 | . . . 1 Recyclers Shooed . | . . . . Parts Field Recycled . | . . . . Retrieved Matter . | . . . . Parts Self-Destructed 6 | . . 6 . Prevented . | . . . . Kills | -11 -10 -10 -8 ------- Run | Yrd Mat Sub Mat Combat Hostiles Destroyed 33 | . 14 7 12 Melee 1 | . . . 1 Guns 30 | . 14 7 9 Classes Destroyed 11 | 2 4 1 4 Worker 1 | . . . 1 Builder 2 | . 1 . 1 Tunneler 2 | 2 . . . Hauler 1 | . . . 1 Recycler 2 | 1 . . 1 Watcher 3 | . 2 . 1 Swarmer 8 | . 8 . . Grunt 14 | . 6 . 8 Sentry 3 | . . . 3 Hunter 1 | . . . 1 Subdweller 7 | . . 7 . Best Kill Streak 4 | 3 4 3 4 Combat Bots Only 4 | . 4 3 3 Max Kills in Single Turn 2 | 1 2 1 1 Gunslinging 1 | . 1 . . Exploded . | . . . . Melee 1 | . . . 1 Uniques/NPCs Destroyed . | . . . . Combat | -11 -10 -10 -8 -------- Run | Yrd Mat Sub Mat Hostile Shots Fired 336 | . 66 40 230 Missed 82 | . 18 9 55 Hits 254 | . 48 31 175 Projectile 254 | . 48 31 175 AOE 2 | . 1 1 . Critical Strikes 8 | . . 1 7 Damage Taken 3929 | . 558 653 2718 Core 760 | . 52 147 561 Absorbed by Shields . | . . . . Core Remaining (%) 60 | 100 . 20 . Volleys Fired 130 | 11 42 24 53 Largest 3 | 2 2 2 3 Hottest 130 | 60 115 115 130 Shots Fired 282 | 22 84 48 128 Gun 282 | 22 84 48 128 Cannon . | . . . . Launcher . | . . . . Special . | . . . . Kinetic 104 | 11 38 9 46 Thermal 178 | 11 46 39 82 Explosive . | . . . . Electromagnetic . | . . . . Robot Hit Streak 12 | 6 7 12 8 Robot Miss Streak 5 | 5 3 2 5 Penetration Max . | . . . . Secondary Targets 5 | . 4 . 1 Max Gunslinging Chain 1 | . 1 . 1 Shots Hit Robots 194 | 11 52 38 93 Core Hits 79 | 4 24 14 37 Critical Kills . | . . . . Critical Parts Destroyed . | . . . . Critical Strikes 11 | . 1 3 7 Burn 11 | . 1 3 7 Melee Attacks 10 | . . . 10 Impact . | . . . . Slashing 10 | . . . 10 Piercing . | . . . . Sneak Attacks . | . . . . Combat Hostiles . | . . . . Follow-up Attacks . | . . . . Damage Inflicted 2786 | 129 671 499 1487 Guns 2564 | 129 671 499 1265 Cannons . | . . . . Explosions . | . . . . Melee 187 | . . . 187 Ramming 35 | . . . 35 Kinetic 992 | 59 297 114 522 Thermal 1572 | 70 374 385 743 Explosive . | . . . . Electromagnetic . | . . . . Impact . | . . . . Slashing 187 | . . . 187 Piercing . | . . . . Highest Corruption 2 | . . . 2 Average Corruption 2 | . . . 2 Corruption Purged . | . . . . Corruption Blocked . | . . . . Effects 3 | . . . 3 Heat Flow Errors 1 | . . . 1 Weapon Failures 2 | . . . 2 Overload Shots . | . . . . Overflow Damage . | . . . . Projectiles . | . . . . Explosions . | . . . . Melee . | . . . . Knockbacks . | . . . . Impact . | . . . . Kinetic . | . . . . Secondary . | . . . . Self-Inflicted Damage 3 | . . . 3 Shots . | . . . . Rammed 9 | . . . 9 Targets Rammed 9 | . . . 9 Kicked . | . . . . Crushed . | . . . . Highest Temperature 209 | . 60 . 209 Average Temperature 52 | . 24 . 57 Received Heat Transfer 1602 | . 108 126 1368 Siege Activations . | . . . . Martial Activations . | . . . . Shielding Activations . | . . . . Robots Disrupted . | . . . . Combat Hostiles . | . . . . Robots Corrupted . | . . . . Combat Hostiles . | . . . . Parts Fried . | . . . . Impact Corruptions . | . . . . Robots Melted 2 | . . . 2 Combat Hostiles 2 | . . . 2 Parts Melted 17 | . 3 6 8 Heat Transferred 4916 | 150 955 1295 2516 Parts Sabotaged . | . . . . Parts Stolen . | . . . . Parts Stripped . | . . . . Power Chain Reactions . | . . . . Alert | -11 -10 -10 -8 ------- Run | Yrd Mat Sub Mat Maximum Alert Level . | . . . . Low Security (%) 100 | 100 100 . 100 Level 1 . | . . . . Level 2 . | . . . . Level 3 . | . . . . Level 4 . | . . . . Level 5 . | . . . . High Security . | . . . . Max Security . | . . . . Peak Influence 117 | 10 117 . 107 Initial . | . . . . Average 38 | 1 41 . 39 Influence Increases 772 | 15 366 . 391 Destroy 0b10 Robot/C 520 | . 280 . 240 Destroy 0b10 Robot/NC 55 | 15 15 . 25 Destroy Leader 118 | . 54 . 64 Successful Hack 17 | . 17 . . Disable Machine 15 | . . . 15 Destroy Structure 2 | . . . 2 Lose Combat Pursuer 45 | . . . 45 Influence Decreases 770 | 15 354 12 389 Entered New Map 7 | . . 7 . Time Decay 555 | 15 334 5 201 Lost Part 208 | . 20 . 188 Squads Dispatched 4 | . 2 . 2 Investigation 1 | . 1 . . Extermination . | . . . . Reinforcement 3 | . 1 . 2 Assault . | . . . . Garrison . | . . . . Intercept . | . . . . Searches Triggered . | . . . . Construction Impeded . | . . . . Haulers Reinforced . | . . . . Active Scanning Responses . | . . . . Cargo Convoy Interrupts . | . . . . Stealth | -11 -10 -10 -8 --------- Run | Yrd Mat Sub Mat Distress Signals 10 | . 2 . 8 Communications Jammed . | . . . . Distress Signals . | . . . . Times Spotted 59 | . 22 8 29 Peak Tracking Total 9 | . 5 3 9 Tactical Retreats 1 | . . . 1 Traps | -11 -10 -10 -8 ------- Run | Yrd Mat Sub Mat Traps Triggered 3 | . 2 . 1 Indirectly . | . . . . Trap Hack Attempts . | . . . . Triggered . | . . . . Disarmed . | . . . . Reprogrammed . | . . . . Reused . | . . . . Traps Extracted . | . . . . Installed . | . . . . Triggered . | . . . . Machines | -11 -10 -10 -8 ---------- Run | Yrd Mat Sub Mat Machines Disabled 1 | . . . 1 Max in Single Turn 1 | . . . 1 Machines Repaired . | . . . . Machines Dismantled . | . . . . Machines Sabotaged . | . . . . Overloaded Fab Kills . | . . . . Hacking | -11 -10 -10 -8 --------- Run | Yrd Mat Sub Mat Machines Accessed 5 | . 5 . . Terminals 3 | . 3 . . Fabricators . | . . . . Repair Stations . | . . . . Recycling Units 2 | . 2 . . Scanalyzers . | . . . . Garrison Access . | . . . . Total Hacks 14 | . 14 . . Successful 4 | . 4 . . Failed 10 | . 10 . . Catastrophic . | . . . . Database Lockouts . | . . . . Manual 10 | . 10 . . Terminals 11 | . 11 . . Fabricators . | . . . . Repair Stations . | . . . . Recycling Units 3 | . 3 . . Scanalyzers . | . . . . Garrison Access . | . . . . Terminal Hacks 1 | . 1 . . Prototype ID Bank 1 | . 1 . . Fabricator Hacks . | . . . . Repair Station Hacks . | . . . . Recycling Unit Hacks . | . . . . Scanalyzer . | . . . . Garrison Access Hacks . | . . . . Unauthorized Hacks 3 | . 3 . . Terminals 3 | . 3 . . Botnet 1 | . 1 . . Skim 2 | . 2 . . Fabricators . | . . . . Repair Stations . | . . . . Recycling Units . | . . . . Scanalyzers . | . . . . Garrison Access . | . . . . Data Cores Recovered . | . . . . Used . | . . . . Hacking Detections 5 | . 5 . . Full Trace Events . | . . . . Feedback Events . | . . . . Feedback Blocked . | . . . . Robot Schematics Acquired . | . . . . Robots Built . | . . . . Authchips . | . . . . Time . | . . . . Total Robot Build Rating . | . . . . Part Schematics Acquired . | . . . . Parts Built . | . . . . Authchips . | . . . . Time . | . . . . Total Part Build Rating . | . . . . Parts Repaired . | . . . . Time . | . . . . Parts Recycled . | . . . . Recycled Matter . | . . . . Retrieved Matter . | . . . . Retrieved Components . | . . . . Parts Scanalyzed . | . . . . Part Schematics Acquired . | . . . . Parts Damaged . | . . . . Bothacking | -11 -10 -10 -8 ------------ Run | Yrd Mat Sub Mat Used RIF Installer . | . . . . Robots Hacked . | . . . . Non-combat . | . . . . Combat . | . . . . Robot Hacks Applied . | . . . . Relay Couplers Released . | . . . . Fabnet Peak Effective % . | . . . . Robots Rewired . | . . . . Allies Hacked . | . . . . Hacks Repelled . | . . . . Allies | -11 -10 -10 -8 -------- Run | Yrd Mat Sub Mat Total Allies . | . . . . Largest Group . | . . . . Highest-Rated Group . | . . . . Highest-Rated Ally . | . . . . Total Orders . | . . . . Ally Attacks . | . . . . Total Damage . | . . . . Kills . | . . . . Allies Corrupted . | . . . . Allies Melted . | . . . . Intel | -11 -10 -10 -8 ------- Run | Yrd Mat Sub Mat Active Infowar (turns) 880 | 49 237 196 398 Seismic 880 | 49 237 196 398 Robot Analysis Total . | . . . . Derelict Logs Recovered . | . . . . Drone Launches . | . . . . Drone Recoveries . | . . . . Exploration | -11 -10 -10 -8 ------------- Run | Yrd Mat Sub Mat Turns Passed 3259 | 144 1205 1348 562 Spaces Moved 1182 | 70 471 526 115 Core 8 | 8 . . . Treads 584 | . 431 44 109 Legs 102 | 62 40 . . Wheels 488 | . . 482 6 Hover . | . . . . Flight . | . . . . Fastest Speed 50 | 50 120 215 119 Average Speed 216 | 117 217 223 236 Slowest Speed 320 | 150 320 320 240 Overloaded Moves . | . . . . Propulsion Burnouts . | . . . . Robots Hopped . | . . . . Potential Cave-ins . | . . . . Cave-ins Triggered . | . . . . Exploration Rate (%) 33 | 5 77 34 17 Regions Visited 3 Branch Regions 1 Pre-discovered Areas . | . . . . Known Exits Taken . | . . . . Unknown Exits Taken 3 | 1 1 1 . Scrap Searched . | . . . . Spaces Dug . | . . . . Terrain Destroyed . | . . . . Melee . | . . . . Projectile . | . . . . AOE . | . . . . Terrain Rammed . | . . . . Walls Destroyed . | . . . . Machines Disabled . | . . . . Actions | -11 -10 -10 -8 --------- Run | Yrd Mat Sub Mat Total 1590 | 107 574 646 263 Wait 136 | 9 22 69 36 Move 1179 | 69 470 525 115 Hop . | . . . . Pick Up 45 | 9 16 11 9 Fast Attach 17 | 7 4 2 4 Attach 22 | . 1 2 19 Detach 2 | . . 1 1 Swap 21 | . 7 9 5 Drop 19 | 2 12 3 2 Fire 130 | 11 42 24 53 Melee 10 | . . . 10 Ram 1 | . . . 1 Kick . | . . . . Crush 8 | . . . 8 Escape Stasis . | . . . . Rewire . | . . . . Trap . | . . . . Miscellaneous . | . . . . Route ------- -11/Scrapyard -10/Materials (discovered 4 exits: [*Mat x2] / [*Min] / [*Sub]) -10/Subcaves -8/Materials (discovered 1 exit: [*Sto]) History --------- Turn | Location | Event 6 | -11/Scrapyard | Discovered new exit (range 16) 145 | -11/Scrapyard | Entered Materials 315 | -10/Materials | Build established: Mutant 411 | -10/Materials | Discovered new exit (range 6) 668 | -10/Materials | Discovered new exit (range 4) 975 | -10/Materials | Discovered new exit (range 13) 1320 | -10/Materials | Discovered new exit (range 9) 1350 | -10/Materials | Entered Subcaves 1497 | -10/Subcaves | A Subdweller sparked back to life 1497 | -10/Subcaves | A Subdweller sparked back to life 1497 | -10/Subcaves | A Subdweller sparked back to life 1510 | -10/Subcaves | Core integrity fell below 50% 1536 | -10/Subcaves | Found Prototype Leg 1744 | -10/Subcaves | A swath of the cavern ceiling suddenly collapsed 1954 | -10/Subcaves | Discovered new exit (range 6) 2383 | -10/Subcaves | Disturbed a concealed Subdweller 2698 | -10/Subcaves | Entered Materials 2698 | -8/Materials | Evolved 4 slots: Propulsion x1, Utility x2, Weapon x1 2742 | -8/Materials | Discovered new exit (range 16) 2976 | -8/Materials | Lost 6 parts (1p2n1u2w) 3158 | -8/Materials | Core integrity fell below 50% 3234 | -8/Materials | Core integrity fell below 20% 3260 | -8/Materials | Destroyed by G-47 Trooper with Particle Gun Last Messages --------------- 03195_ Slammed into G-47 Trooper. 03197_ G-47 Trooper overheating. 03197_ Slammed into G-47 Trooper. 03199_ G-47 Trooper heat damages core (-6). 03200_ Slammed into G-47 Trooper. 03200_ G-47 Trooper overheating. 03201_ G-47 Trooper destroyed. 03202_ Critical hit (Burn: +37). 03204_ Lgt. Treads destroyed. 03205_ Acquired 14 matter. 03207_ Lgt. Treads destroyed. 03209_ Acquired 3 matter. 03209_ Slammed into W-25 Informer. 03222_ Particle Gun destroyed. 03224_ Lgt. Treads destroyed. 03233_ Lgt. Nuclear Core destroyed. 03239_ Critical hit (Burn: +37). 03245_ Arm. Wheel destroyed. 03246_ G-47 Trooper destroyed. 03255_ Wheel destroyed. Map ----- +----------------------------------------------------+ | | | | | | | ?????????????????????????????????????????????????? | | ?????????????????????????????????????????????????? | | ?????????????????????? ??????????????????????????? | | ?????????????????????? ??????????????????????????? | | ######???????????????? ??????????????????????????? | | #! ??????????????? ??????????????????????????? | | # ?#??????????? ??????????????????????????? | | # #??????????? ??????????????????????????? | | # """"" #??????????#+#?????????????????????????? | | # """"" #?????????? [ ?????????????????????????? | | # """"" #??????????#%#?????????????????????????? | | # ????????????#!#?????????????????????????? | | #? ???????######## #?????????????????????????? | | ####+########## ## #?????????????????????????? | | ##|#?????#####???????????????? | | < ##*#?????# ???????????????? | | = ##%#?????# ???????????????? | | ###########+### ##%#?????# ???????????????? | | ????????? ## ###+####??# #???????????????? | | ???????# ## # ==!!#??# #???????????????? | | ???????# ## #% "=#??# #???????????????? | | ???????# ## +% =%Tg#??# #???????????????? | | ???????# ## # = ="@#??# #???????????????? | | ???????# ## # #??# #???????????????? | | ???????######### # =%#??# #???????????????? | | ???????????????# #####+###?# #???????????????? | | ???????????????# ## !% #?# #???????????????? | | ???????????????# ## = #?# ######+#########? | | ???????????????+ ##"S ### """ | | ???????????????# ##""" !+% "T" ?? | | ???????????????# ## " =#!| """ ?????? | | ???????????????# ## %+%% """ ?????? | | ??????????????# ###+####!! """ ?????? | | ??????????????# %%= #???? | | ??????????????# " *!##### #???? | | ??????????????# [#???# #???? | | ??????????????# #### #???# #???? | | ??????????????######???# #???#+##### ####???? | | ???????????????????????# #?????????? #??????? | | ???????????????????????# #??????????? #??????? | | ???????????????????????# #???????????##+#??????? | | ???????????????????????# #?????????????????????? | | ???????????????????????# #?????????????????????? | | ???????????????????????# #?????????????????????? | | ???????????????????????# #?????????????????????? | | ???????????????????????# #?????????????????????? | | ??????????????????????? ??????????????????????? | +----------------------------------------------------+ Best States ------------- Heat Dissipation 50 Coolant Potential 50 Energy Generation 15 Energy Capacity 200 Matter Stores 300 Matter Capacity 300 Sight Range 16 Terrain Scan Density 10 Armor Coverage 150 Evasion (%) 55 Recoil Reduction 3 Item Schematics ----------------- None Robot Schematics ------------------ None Fabricated ------------ Nothing Repaired ---------- Nothing Alien Tech Used ----------------- None Achievements -------------- None Challenges ------------ None Game ------ Seed WarlordLightpackRouter Manual? 0 Play Time 00:23:12 Cumulative 218.1 hours Start 2025.05.06 @ 21:49:16 End 2025.05.07 @ 15:45:34 Sessions 2 Manual Loads 0 Difficulty Rogue Special Mode None Game No. 117 Rogue 117 Adventurer 0 Explorer 0 Win Type - Total 3 Types 3/0/0/0/0/0/0/0/0/0 Lore% 72 Gallery% 70 Achievement% 62 Wizard Run 0 Options --------- Layout 0 ASCII 0 Keyboard 1 Movement Numpad Keybinds 0 Fullscreen 2 Font 20/Terminus Map View 66x50 Zoom Use 0% Tactical HUD 1 Map Filters NONE Filters NONE Steam 1 RUN: 703dc2d0-ca4b-4757-9d87-7a6f55c5d49f